bitfinex/quotes_BTCUSD_20220204
["timestamp","ask_amount","ask_price","bid_price","bid_amount"]
[1643985916570,0.012,37949.0,37943.0,0.3091]
[1643985916769,0.012,37949.0,37947.0,0.03609848]
[1643985916970,0.012,37949.0,37947.0,0.15188448]
[1643985917614,0.012,37949.0,37947.0,0.31098448]
[1643985917815,0.012,37949.0,37947.0,0.41098448]
[1643985918210,0.012,37949.0,37947.0,0.25188448]
[1643985918411,0.01890151,37948.0,37947.0,0.352498]
[1643985918610,0.01890151,37948.0,37947.0,0.35030349]
[1643985919011,0.01890151,37948.0,37947.0,0.11859149]
[1643985919211,0.01890151,37948.0,37947.0,0.21859149]
[1643985919410,0.16514676,37948.0,37947.0,0.21859149]
[1643985919613,0.16514676,37948.0,37947.0,0.11859149]
[1643985920410,0.16514676,37948.0,37943.0,2.29848601]
[1643985920411,0.16514676,37948.0,37943.0,1.81391497]
[1643985920612,0.42648736,37948.0,37944.0,0.0486]
[1643985920881,0.42648736,37948.0,37937.0,0.7963]
[1643985920882,0.01890151,37945.0,37935.0,0.1486]
[1643985921069,0.01890151,37945.0,37935.0,0.1]
[1643985921070,0.01890151,37936.0,37935.0,0.1]
[1643985921465,0.08666355,37944.0,37936.0,0.02768864]
[1643985921664,0.00742857,37937.0,37936.0,0.25443098]
[1643985921864,0.00742857,37937.0,37935.0,0.2636]
[1643985922466,0.00742857,37939.0,37935.0,0.2636]
[1643985922664,0.00742857,37939.0,37936.0,0.0486]
[1643985923263,0.23127893,37942.0,37936.0,0.0486]
[1643985923264,0.00742857,37937.0,37936.0,0.0486]
[1643985924064,0.22467639,37936.0,37935.0,0.2636]
[1643985924464,0.00742857,37937.0,37935.0,0.30617142]
[1643985925116,0.00742857,37937.0,37935.0,0.2636]
[1643985925616,0.00742857,37944.0,37935.0,0.04257142]
[1643985925820,0.00742857,37948.0,37941.0,0.04257142]
[1643985926018,0.00742857,37948.0,37942.0,0.0486]
[1643985926318,0.012,37949.0,37943.0,0.04257142]
[1643985926517,0.012,37949.0,37944.0,0.27998333]
[1643985926720,0.012,37949.0,37946.0,0.29598256]
[1643985926920,0.00742857,37947.0,37946.0,0.29598256]
[1643985927119,0.00742857,37947.0,37946.0,0.34458256]
[1643985928873,0.00742857,37947.0,37946.0,0.0486]
[1643985929871,0.30564298,37947.0,37946.0,0.0486]
[1643985930071,0.38344765,37947.0,37946.0,0.0486]
[1643985930271,0.30564298,37947.0,37946.0,0.0486]
[1643985933933,0.00742857,37947.0,37946.0,0.0486]
[1643985934131,0.00742857,37947.0,37938.0,0.56717181]
[1643985934132,0.15516828,37946.0,37938.0,0.56717181]
[1643985934333,0.15516828,37946.0,37938.0,0.34461106]
[1643985934531,0.00742857,37939.0,37936.0,0.28371258]
[1643985934731,0.02047794,37942.0,37937.0,0.0486]
[1643985934931,0.00742857,37938.0,37937.0,0.0486]
[1643985935331,0.00742857,37938.0,37937.0,1.3986]
[1643985935531,0.00742857,37938.0,37937.0,1.65762698]
[1643985935959,0.02047794,37942.0,37937.0,1.8001984]
[1643985936162,0.02047794,37942.0,37941.0,1.9]
[1643985936359,0.02790651,37942.0,37941.0,1.9486]
[1643985936559,0.02047794,37942.0,37941.0,1.9486]
[1643985936759,0.02790651,37942.0,37941.0,1.9486]
[1643985936960,0.00742857,37946.0,37942.0,1.25]
[1643985937166,0.012,37949.0,37945.0,0.69257142]
[1643985937362,0.012,37949.0,37948.0,1.19257142]
[1643985937564,0.002,37954.0,37949.0,1.9]
[1643985937763,0.002,37954.0,37948.0,1.99117142]
[1643985937764,0.002,37954.0,37953.0,1.64257142]
[1643985937965,0.002,37954.0,37953.0,2.10257048]
[1643985938162,0.002,37954.0,37953.0,0.90257048]
[1643985938367,0.001,37965.0,37953.0,0.45999906]
[1643985938765,0.002,37965.0,37954.0,0.05]
[1643985938964,0.002,37965.0,37956.0,0.04999999]
[1643985939166,0.002,37965.0,37959.0,0.26799587]
[1643985939365,0.002,37965.0,37962.0,0.04999999]
[1643985939610,0.002,37965.0,37963.0,0.0486]
[1643985941110,0.002,37965.0,37964.0,2.18025406]
[1643985941309,0.002,37965.0,37964.0,2.32885406]
[1643985941711,6e-05,37971.0,37965.0,1.55]
[1643985942014,6e-05,37971.0,37970.0,1.25519953]
[1643985942311,6e-05,37971.0,37970.0,0.50379953]
[1643985942511,6e-05,37971.0,37970.0,0.40877938]
[1643985942910,0.0215562,37974.0,37970.0,0.40877938]
[1643985942911,0.0136162,37974.0,37970.0,0.40877938]
[1643985943112,0.0011,37977.0,37973.0,0.04999999]
[1643985943366,0.0011,37977.0,37974.0,0.0486]
[1643985943566,0.0011,37977.0,37975.0,0.04999999]
[1643985943761,0.0011,37977.0,37975.0,0.09859999]
[1643985944159,0.0011,37977.0,37975.0,0.0486]
[1643985945861,0.0011,37977.0,37974.0,0.06171932]
[1643985946065,0.0011,37977.0,37975.0,0.0486]
[1643985947114,0.1480656,37977.0,37975.0,0.0486]
[1643985947314,0.0011,37977.0,37975.0,0.0486]
[1643985948514,0.0011,37977.0,37975.0,0.09859999]
[1643985948718,0.29717461,37977.0,37975.0,0.0486]
[1643985949314,0.17727223,37976.0,37975.0,0.0486]
[1643985949714,0.0022,37976.0,37975.0,0.0386]
[1643985950516,0.0022,37976.0,37967.0,0.08820362]
[1643985950715,0.151314,37972.0,37968.0,0.0486]
[1643985950975,0.0116,37979.0,37968.0,0.0486]
[1643985950976,0.27858942,37987.0,37981.0,0.25]
[1643985951174,0.05,37989.0,37981.0,0.25]
[1643985951175,0.86904667,37986.0,37981.0,0.25]
[1643985951381,0.05,37982.0,37974.0,0.05]
[1643985951570,0.001,37992.0,37972.0,0.197481]
[1643985951871,0.26172293,37979.0,37972.0,0.197481]
[1643985952268,0.09938268,37979.0,37972.0,0.197481]
[1643985952470,0.3950834,37979.0,37972.0,0.197481]
[1643985952669,0.3950834,37979.0,37975.0,0.065841]
[1643985953271,0.19963808,37980.0,37975.0,0.065841]
[1643985953473,0.19963808,37980.0,37965.0,0.05]
[1643985953474,0.05,37970.0,37965.0,0.05]
[1643985953671,0.05,37970.0,37961.0,0.263324]
[1643985953672,0.65,37965.0,37952.0,0.21488906]
[1643985953876,0.346836,37963.0,37950.0,0.10119]
[1643985954071,0.45,37969.0,37953.0,0.04999999]
[1643985954270,0.45,37969.0,37962.0,0.25072401]
[1643985954472,0.0865703,37968.0,37957.0,0.10117]
[1643985954914,0.19114911,37964.0,37957.0,0.10117]
[1643985955112,0.19114911,37964.0,37957.0,0.15117]
[1643985955314,0.19114911,37964.0,37957.0,0.217033]
[1643985955513,0.46871192,37964.0,37957.0,0.217033]
[1643985955713,0.0865703,37968.0,37957.0,0.217033]
[1643985956313,0.0865703,37968.0,37957.0,0.115863]
[1643985956517,0.24369126,37967.0,37957.0,0.065863]
[1643985956714,0.18007216,37964.0,37957.0,0.065863]
[1643985957514,0.27733295,37960.0,37957.0,0.065863]
[1643985957913,0.20691948,37963.0,37957.0,0.065863]
[1643985958113,0.21295644,37963.0,37957.0,0.065863]
[1643985958366,0.19001314,37958.0,37957.0,0.065863]
[1643985958562,0.43157336,37958.0,37948.0,0.1976]
[1643985958760,0.43157336,37958.0,37950.0,0.065883]
[1643985959169,0.19001314,37958.0,37950.0,0.060883]
[1643985959359,0.07413897,37960.0,37954.0,0.25386481]
[1643985959559,0.07413897,37960.0,37948.0,0.29191483]
[1643985959560,0.07413897,37960.0,37948.0,0.1976]
[1643985959762,0.07413897,37960.0,37950.0,0.065876]
[1643985960162,0.1980429,37956.0,37950.0,0.065876]
[1643985960559,0.07413897,37960.0,37952.0,0.25127536]
[1643985960960,0.07413897,37960.0,37953.0,0.131744]
[1643985961360,0.07413897,37960.0,37953.0,0.181744]
[1643985961574,0.18895673,37960.0,37953.0,0.181744]
[1643985961762,0.18895673,37960.0,37953.0,0.131744]
[1643985961763,0.25968547,37957.0,37953.0,0.131744]
[1643985961960,0.30484394,37965.0,37953.0,0.131744]
[1643985962221,0.30484394,37965.0,37954.0,0.065871]
[1643985962222,0.346836,37964.0,37954.0,0.065871]
[1643985962420,0.30484394,37965.0,37954.0,0.065871]
[1643985962724,0.09561765,37956.0,37954.0,0.065871]
[1643985962923,0.346836,37955.0,37953.0,0.131744]
[1643985965979,0.346836,37953.0,37945.0,0.0659]
[1643985966177,0.18299792,37948.0,37942.0,0.07069259]
[1643985966573,0.39724934,37959.0,37943.0,0.04999999]
[1643985966574,0.39457226,37959.0,37943.0,0.04999999]
[1643985966775,0.39457226,37959.0,37944.0,0.0158985]
[1643985966979,0.39457226,37959.0,37938.0,0.5072]
[1643985966980,0.045,37943.0,37938.0,0.5072]
[1643985967178,1.7,37957.0,37931.0,0.01]
[1643985967179,0.045,37939.0,37937.0,0.10123]
[1643985967377,0.6109255,37938.0,37937.0,0.10123]
[1643985967575,0.62047334,37938.0,37931.0,0.01]
[1643985967776,0.67446354,37932.0,37931.0,0.01]
[1643985967978,0.00557863,37934.0,37931.0,0.01]
[1643985968174,0.00557863,37934.0,37932.0,0.04999999]
[1643985968575,0.00557863,37934.0,37932.0,6.157e-05]
[1643985968775,0.00557863,37934.0,37923.0,0.02597257]
[1643985968978,0.00557863,37934.0,37932.0,0.27649212]
[1643985969378,0.42,37941.0,37935.0,0.09025922]
[1643985969640,0.42,37941.0,37933.0,1.79999999]
[1643985969641,0.42,37941.0,37936.0,0.04999999]
[1643985970032,0.42,37941.0,37940.0,0.28556509]
[1643985970231,0.42,37941.0,37936.0,0.04999999]
[1643985970733,0.42,37941.0,37933.0,0.04999999]
[1643985971133,0.6340895,37941.0,37934.0,0.065908]
[1643985971336,0.6340895,37941.0,37934.0,0.29842747]
[1643985971337,0.42,37941.0,37934.0,0.29842747]
[1643985971535,0.62710351,37941.0,37934.0,0.34842747]
[1643985971834,0.50237615,37941.0,37934.0,0.34842747]
[1643985972136,0.42,37941.0,37934.0,0.34842747]
[1643985972733,0.42,37941.0,37934.0,0.29842747]
[1643985973235,0.42,37941.0,37939.0,0.04999999]
[1643985973470,0.0247,37941.0,37939.0,0.04999999]
[1643985973669,0.01811596,37942.0,37939.0,0.04999999]
[1643985973866,0.03638334,37942.0,37941.0,0.04999999]
[1643985974068,0.01826738,37942.0,37941.0,0.04999999]
[1643985974266,0.01826738,37942.0,37941.0,0.35498719]
[1643985974467,0.01826738,37942.0,37941.0,0.40498719]
[1643985974675,0.01826738,37942.0,37941.0,0.0527]
[1643985974971,0.41826738,37942.0,37938.0,0.065894]
[1643985975169,0.41826738,37942.0,37937.0,0.131787]
[1643985975770,0.38249256,37944.0,37937.0,0.131787]
[1643985975771,0.27570383,37944.0,37937.0,0.131787]
[1643985975969,0.20072805,37943.0,37937.0,0.131787]
[1643985976168,0.20072805,37943.0,37931.0,0.904023]
[1643985976169,0.24572805,37943.0,37933.0,0.065911]
[1643985976366,0.20072805,37943.0,37933.0,0.065911]
[1643985976767,0.09984596,37944.0,37933.0,0.065911]
[1643985976968,0.20391431,37943.0,37934.0,0.04999999]
[1643985977211,0.16184528,37941.0,37933.0,0.42210499]
[1643985977409,0.20580436,37940.0,37933.0,0.065911]
[1643985977611,0.25915777,37943.0,37933.0,0.065911]
[1643985977811,0.045,37938.0,37931.0,0.131823]
[1643985978013,0.25915777,37943.0,37925.0,0.065924]
[1643985978014,0.27595885,37937.0,37925.0,0.065924]
[1643985978211,0.27595885,37937.0,37927.0,0.04999999]
[1643985978212,0.07482388,37934.0,37927.0,0.04999999]
[1643985978411,0.27595885,37937.0,37930.0,0.26146521]
[1643985978611,0.42,37937.0,37930.0,0.26146521]
[1643985978813,0.42,37937.0,37936.0,0.13753942]
[1643985979210,0.42,37937.0,37933.0,0.065911]
[1643985979817,0.42,37937.0,37933.0,0.11591099]
[1643985980212,0.0185471,37938.0,37932.0,0.05]
[1643985980414,0.0455386,37943.0,37932.0,0.05]
[1643985980616,0.045,37939.0,37926.0,0.0527]
[1643985980870,0.27010419,37937.0,37930.0,0.04999999]
[1643985981262,0.10014746,37936.0,37930.0,0.04999999]
[1643985981663,0.19970831,37935.0,37930.0,0.04999999]
[1643985982466,0.19970831,37935.0,37929.0,0.131824]
[1643985983064,0.27568293,37931.0,37929.0,0.131824]
[1643985983264,0.19970831,37935.0,37929.0,0.233074]
[1643985983464,0.045,37936.0,37929.0,0.233074]
[1643985983666,0.0455386,37943.0,37929.0,0.233074]
[1643985983667,0.0455386,37943.0,37934.0,0.04999999]
[1643985983865,0.0455386,37943.0,37937.0,0.04999999]
[1643985984064,0.0455386,37943.0,37937.0,0.0527]
[1643985984466,0.15877429,37941.0,37937.0,0.0527]
[1643985984715,0.0455386,37943.0,37938.0,0.065905]
[1643985985313,0.11352056,37950.0,37941.0,0.04999999]
[1643985985314,0.00557599,37950.0,37941.0,0.04999999]
[1643985985516,0.00557599,37950.0,37943.0,0.04999999]
[1643985985725,0.00557599,37950.0,37946.0,0.04999999]
[1643985985917,0.6687,37966.0,37949.0,0.04999999]
[1643985986116,0.610883,37969.0,37946.0,0.0485]
[1643985986117,0.45,37969.0,37958.0,0.04999999]
[1643985986318,0.45,37969.0,37963.0,0.04999999]
[1643985986714,0.18684936,37967.0,37963.0,0.04999999]
[1643985986918,0.45,37969.0,37963.0,0.36398863]
[1643985987217,0.0011,37971.0,37963.0,0.36398863]
[1643985987824,0.046,37968.0,37963.0,0.0485]
[1643985988022,0.1918255,37964.0,37963.0,0.0485]
[1643985989070,0.5386615,37964.0,37961.0,0.131706]
[1643985989270,0.346836,37963.0,37961.0,0.131706]
[1643985989472,0.045,37962.0,37961.0,0.131706]
[1643985989678,0.045,37955.0,37952.0,0.02024908]
[1643985989974,0.15008695,37953.0,37952.0,0.26336092]
[1643985990176,0.15008695,37953.0,37951.0,0.01923329]
[1643985990573,0.61146677,37952.0,37951.0,0.01923329]
[1643985990776,1.00330277,37952.0,37951.0,0.01923329]
[1643985990975,0.791836,37952.0,37951.0,0.01923329]
[1643985991171,0.25809046,37942.0,37941.0,0.05]
[1643985991372,0.22368039,37944.0,37941.0,0.15183]
[1643985992408,0.36067036,37944.0,37941.0,0.15183]
[1643985992612,0.01923329,37952.0,37941.0,0.04999999]
[1643985993312,0.045,37944.0,37939.0,0.20024344]
[1643985993510,0.045,37944.0,37941.0,0.065899]
[1643985993911,0.28692785,37943.0,37941.0,0.065899]
[1643985994111,0.28192785,37943.0,37939.0,0.06845444]
[1643985994611,0.28192785,37943.0,37939.0,0.01845445]
[1643985994812,0.2336,37956.0,37941.0,0.04999999]
[1643985995015,0.31949603,37961.0,37951.0,0.04999999]
[1643985995016,0.19859303,37961.0,37951.0,0.04999999]
[1643985995217,0.02047049,37963.0,37954.0,0.04999999]
[1643985995892,0.02047049,37963.0,37958.0,0.04999999]
[1643985996287,0.02047049,37963.0,37956.0,0.05]
[1643985996684,0.02047049,37963.0,37962.0,0.04999999]
[1643985996885,0.16922636,37961.0,37960.0,0.04999999]
[1643985997281,0.001,37964.0,37957.0,0.0485]
[1643985997484,0.001,37964.0,37958.0,0.131734]
[1643985998188,0.001,37964.0,37957.0,0.114366]
[1643985998189,0.045,37960.0,37957.0,0.114366]
[1643985998382,0.16958878,37959.0,37957.0,0.16436599]
[1643985998685,0.08867196,37958.0,37954.0,0.131753]
[1643985998886,0.08867196,37958.0,37950.0,0.065889]
[1643985998887,0.22274917,37954.0,37950.0,0.065889]
[1643985999088,0.27999798,37966.0,37950.0,0.065889]
[1643985999289,0.27264739,37977.0,37965.0,0.04999999]
[1643985999492,0.002,37985.0,37955.0,1.9]
[1643985999493,0.62007727,37987.0,37983.0,0.0552668]
[1643985999717,0.0011,37993.0,37986.0,0.04999999]
[1643985999718,0.08296777,37993.0,37986.0,0.04999999]
[1643985999915,0.0011,37993.0,37988.0,0.10526679]
[1643986000122,0.00031821,37996.0,37995.0,0.0552668]
[1643986000316,0.00031821,37996.0,37995.0,0.09849999]
[1643986000722,0.0454,38000.0,37995.0,0.09849999]
[1643986000915,0.0454,38000.0,37999.0,0.04999999]
[1643986001119,0.0454,38000.0,37993.0,0.0485]
[1643986001120,0.7,37999.0,37993.0,0.0485]
[1643986001316,0.32062336,37998.0,37993.0,0.0485]
[1643986001519,0.9132092,37999.0,37993.0,0.0485]
[1643986001520,0.346836,37997.0,37993.0,0.0485]
[1643986001916,0.0011,37999.0,37993.0,0.09849999]
[1643986002215,0.0454,38000.0,37994.0,0.065813]
[1643986002615,0.0454,38000.0,37993.0,0.0485]
[1643986003016,0.0454,38000.0,37998.0,0.10526679]
[1643986003220,0.0454,38000.0,37999.0,1.93862692]
[1643986003474,0.00031837,38006.0,37999.0,1.9]
[1643986003674,0.00031837,38006.0,38003.0,0.04999999]
[1643986003882,0.00031837,38006.0,38002.0,0.0485]
[1643986004473,0.00031837,38006.0,38001.0,0.05]
[1643986004671,0.04999999,38002.0,37998.0,0.0485]
[1643986004875,0.04999999,38002.0,37997.0,0.05]
[1643986004876,0.22980799,37998.0,37997.0,0.0485]
[1643986005076,1.55,37997.0,37984.0,0.5]
[1643986005279,0.0947332,37993.0,37986.0,0.00697142]
[1643986005475,0.09999999,37995.0,37965.0,0.05]
[1643986005476,0.18241722,37983.0,37965.0,0.05]
[1643986005678,0.16144608,37970.0,37969.0,0.21079672]
[1643986005880,0.37274946,37970.0,37969.0,0.79012]
[1643986006075,0.04999999,37970.0,37969.0,1.299718]
[1643986006375,0.04999999,37976.0,37969.0,0.79012]
[1643986006576,0.04999999,37976.0,37967.0,0.065845]
[1643986006774,0.04999999,37980.0,37967.0,0.065845]
[1643986006977,0.02076429,37986.0,37965.0,0.30000582]
[1643986006978,0.04999999,37975.0,37965.0,0.30000582]
[1643986007226,0.04999999,37980.0,37974.0,0.10248783]
[1643986008227,0.02076429,37986.0,37974.0,0.20248783]
[1643986008432,0.02076429,37986.0,37976.0,0.131635]
[1643986008433,0.07076428,37986.0,37976.0,0.131635]
[1643986008626,0.07076428,37986.0,37976.0,0.181635]
[1643986008826,0.02076429,37986.0,37976.0,0.05]
[1643986009027,0.02076429,37986.0,37973.0,0.05]
[1643986009028,0.04999999,37978.0,37973.0,0.05]
[1643986009230,0.23415705,37986.0,37973.0,0.05]
[1643986009231,0.04999999,37974.0,37973.0,0.10113]
[1643986009430,0.28265705,37986.0,37973.0,0.36447]
[1643986009629,0.04999999,37982.0,37974.0,0.41503]
[1643986009831,0.31473862,37987.0,37974.0,0.41503]
[1643986010029,0.19433797,37982.0,37974.0,0.41503]
[1643986010429,0.52610827,37985.0,37974.0,0.41503]
[1643986010430,0.04999999,37980.0,37974.0,0.41503]
[1643986010631,0.08153459,37981.0,37974.0,0.41503]
[1643986010879,1.09999999,37975.0,37974.0,0.41503]
[1643986011081,1.49533599,37975.0,37974.0,0.41503]
[1643986011272,0.44533599,37975.0,37974.0,0.41503]
[1643986011479,0.04999999,37980.0,37974.0,0.41503]
[1643986011678,0.04999999,37977.0,37974.0,0.41503]
[1643986011875,0.04999999,37975.0,37974.0,0.41503]
[1643986012172,0.14678492,37983.0,37974.0,0.41503]
[1643986012173,0.04999999,37979.0,37974.0,0.41503]
[1643986012373,0.04999999,37977.0,37974.0,0.46503]
[1643986012574,0.2751128,37979.0,37974.0,0.41503]
[1643986012575,0.04999999,37975.0,37974.0,0.41503]
[1643986012774,0.04999999,37975.0,37967.0,0.21085714]
[1643986012775,0.346836,37974.0,37967.0,0.21085714]
[1643986012974,0.346836,37974.0,37951.0,0.01]
[1643986012975,0.346836,37974.0,37966.0,0.21085714]
[1643986013173,0.04999999,37967.0,37961.0,0.41357004]
[1643986013377,0.42,37977.0,37961.0,0.41357004]
[1643986013579,0.17510272,37970.0,37962.0,0.21603304]
[1643986013773,0.04999999,37971.0,37961.0,0.197537]
[1643986014073,0.04999999,37969.0,37961.0,0.197537]
[1643986014273,0.08018921,37972.0,37961.0,0.247537]
[1643986014722,0.08018921,37972.0,37960.0,0.065868]
[1643986014723,0.04999999,37962.0,37957.0,0.05]
[1643986014924,0.83785878,37963.0,37954.0,0.131739]
[1643986014925,0.04999999,37960.0,37954.0,0.131739]
[1643986015125,0.346836,37959.0,37957.0,0.26345]
[1643986015319,0.69506075,37963.0,37957.0,0.26345]
[1643986015720,0.04999999,37960.0,37957.0,0.26345]
[1643986015921,0.02147539,37963.0,37958.0,0.21603304]
[1643986016127,0.02147539,37963.0,37959.0,0.26344]
[1643986016319,0.02147539,37963.0,37959.0,2.30238621]
[1643986016519,0.02147539,37963.0,37960.0,0.20233]
[1643986016720,0.02147539,37963.0,37961.0,0.26342]
[1643986017121,0.04999999,37962.0,37961.0,0.26342]
[1643986017320,0.02147539,37963.0,37961.0,0.26342]
[1643986017724,0.01999999,37962.0,37961.0,0.26342]
[1643986017920,0.01999999,37962.0,37954.0,0.03]
[1643986018120,0.01999999,37957.0,37954.0,0.03]
[1643986018362,0.01999999,37960.0,37956.0,0.065873]
[1643986018564,0.07920214,37964.0,37956.0,0.065873]
[1643986018770,0.02027637,37968.0,37957.0,0.065864]
[1643986018966,0.04027636,37968.0,37962.0,0.03]
[1643986019166,0.04027636,37968.0,37960.0,0.131706]
[1643986019364,0.04027636,37968.0,37963.0,0.03]
[1643986019564,0.02027637,37968.0,37963.0,0.03]
[1643986019966,0.34455162,37970.0,37963.0,0.03]
[1643986020166,0.01845762,37970.0,37963.0,0.03]
[1643986020567,0.01845762,37970.0,37961.0,0.131706]
[1643986020568,0.01845762,37970.0,37969.0,0.03]
[1643986021170,0.01345762,37970.0,37969.0,0.03]
[1643986021971,0.03345761,37970.0,37969.0,0.03]
[1643986022234,0.03345761,37970.0,37967.0,0.05]
[1643986022434,0.22045691,37968.0,37967.0,0.05]
[1643986022635,1.4075067,37968.0,37958.0,0.197531]
[1643986022834,0.81857925,37968.0,37958.0,0.197531]
[1643986023032,0.01999999,37963.0,37958.0,0.197531]
[1643986023234,0.01999999,37959.0,37953.0,0.05]
[1643986023436,0.81857925,37968.0,37951.0,0.04]
[1643986023437,0.11774269,37954.0,37951.0,0.01]
[1643986023635,0.11774269,37954.0,37951.0,0.005]
[1643986023636,0.01999999,37952.0,37951.0,0.005]
[1643986023835,0.11774269,37954.0,37951.0,0.005]
[1643986024139,0.33607614,37961.0,37953.0,0.03]
[1643986024335,0.01999999,37955.0,37954.0,0.065877]
[1643986024534,0.01999999,37955.0,37951.0,0.005]
[1643986024732,0.01999999,37952.0,37951.0,0.005]
[1643986025134,0.01999999,37958.0,37951.0,0.005]
[1643986025336,0.01999999,37958.0,37956.0,0.03]
[1643986025537,0.21707178,37964.0,37957.0,0.21707178]
[1643986025538,0.01999999,37964.0,37957.0,0.21707178]
[1643986025737,2.20719752,37978.0,37963.0,0.03]
[1643986025966,2.20719752,37978.0,37958.0,0.0485]
[1643986025967,0.01999999,37964.0,37958.0,0.0485]
[1643986026167,0.01999999,37966.0,37961.0,0.03]
[1643986026365,0.01999999,37966.0,37960.0,0.131707]
[1643986026566,0.02009364,37968.0,37963.0,0.02990635]
[1643986026870,0.02009364,37968.0,37964.0,0.0485]
[1643986027066,0.21359402,37979.0,37964.0,0.0485]
[1643986027266,0.02009364,37965.0,37962.0,0.21707178]
[1643986027466,0.35982651,37972.0,37960.0,0.181707]
[1643986027664,0.02009364,37967.0,37960.0,0.181707]
[1643986027864,0.3809998,37972.0,37961.0,0.065859]
[1643986028069,0.1720222,37968.0,37961.0,0.065859]
[1643986028467,0.01509364,37962.0,37961.0,0.065859]
[1643986028673,0.10982684,37962.0,37951.0,0.055]
[1643986028873,0.10982684,37962.0,37951.0,0.005]
[1643986028874,0.0947332,37962.0,37951.0,0.005]
[1643986029067,0.01509364,37960.0,37951.0,0.005]
[1643986029267,0.01509364,37952.0,37951.0,0.005]
[1643986029913,0.01509364,37954.0,37951.0,0.005]
[1643986030312,0.01509364,37953.0,37951.0,0.005]
[1643986030517,0.01925336,37962.0,37952.0,0.03490635]
[1643986030715,0.01925336,37962.0,37951.0,0.005]
[1643986030716,0.14288331,37960.0,37951.0,0.005]
[1643986030916,0.07569278,37957.0,37952.0,0.131751]
[1643986031117,0.01925336,37962.0,37952.0,0.181751]
[1643986031118,0.11398656,37962.0,37952.0,0.181751]
[1643986031317,0.0947332,37959.0,37952.0,0.181751]
[1643986031516,0.01925336,37962.0,37954.0,0.03990635]
[1643986031720,0.01925336,37962.0,37958.0,0.03990635]
[1643986031916,0.01882008,37960.0,37958.0,0.03990635]
[1643986032119,0.00827212,37959.0,37954.0,0.131726]
[1643986032315,0.01882008,37960.0,37953.0,0.065873]
[1643986032514,0.00827212,37955.0,37953.0,0.055873]
[1643986032718,0.00827212,37955.0,37952.0,0.131751]
[1643986032719,0.10300532,37955.0,37952.0,0.131751]
[1643986032921,0.00827212,37953.0,37951.0,0.005]
[1643986033117,0.00827212,37953.0,37951.0,0.0001]
[1643986033118,0.346836,37952.0,37951.0,0.0001]
[1643986033372,0.346836,37952.0,37943.0,0.05]
[1643986033373,0.80103653,37952.0,37943.0,0.05]
[1643986033670,0.24248388,37954.0,37941.0,0.01]
[1643986033671,0.00827212,37944.0,37941.0,0.01]
[1643986033975,0.05827212,37962.0,37943.0,0.18177999]
[1643986033976,0.21707178,37960.0,37943.0,0.18177999]
[1643986034178,0.2477,37962.0,37952.0,0.04999999]
[1643986034179,0.44859253,37958.0,37952.0,0.04999999]
[1643986034571,0.22667116,37953.0,37944.0,0.04999999]
[1643986034776,0.32140436,37953.0,37944.0,0.1]
[1643986034972,0.08796843,37948.0,37944.0,0.131787]
[1643986035169,0.4834952,37953.0,37944.0,0.131787]
[1643986035170,0.0947332,37953.0,37944.0,0.131787]
[1643986035371,0.0947332,37953.0,37944.0,0.065893]
[1643986035571,0.21707178,37957.0,37944.0,0.065893]
[1643986035772,0.28361997,37952.0,37943.0,0.13178]
[1643986035972,0.02168644,37951.0,37945.0,0.131791]
[1643986036171,0.0947332,37947.0,37945.0,0.121791]
[1643986036770,0.0947332,37947.0,37942.0,0.131791]
[1643986036771,0.62942123,37946.0,37942.0,0.131791]
[1643986036971,0.34677461,37945.0,37942.0,0.131791]
[1643986037222,0.0947332,37943.0,37942.0,0.131791]
[1643986037424,0.0947332,37943.0,37941.0,0.075908]
[1643986037625,0.0947332,37943.0,37941.0,0.01]
[1643986037822,0.0947332,37945.0,37941.0,0.01]
[1643986038419,0.21707178,37954.0,37941.0,0.01]
[1643986038625,0.01801694,37955.0,37951.0,0.04499999]
[1643986038824,0.01801694,37955.0,37951.0,0.11088099]
[1643986039024,0.01801694,37955.0,37954.0,0.04499999]
[1643986039421,0.01801694,37955.0,37954.0,1.94499999]
[1643986039822,0.01801694,37955.0,37954.0,2.04499999]
[1643986040025,0.005,37960.0,37954.0,0.8]
[1643986040225,0.01944089,37966.0,37959.0,0.04499999]
[1643986040425,0.01944089,37966.0,37965.0,0.04499999]
[1643986040624,0.001,37973.0,37965.0,0.04999999]
[1643986040865,0.001,37973.0,37959.0,0.21707178]
[1643986040866,0.19281151,37972.0,37959.0,0.21707178]
[1643986041066,0.19281151,37972.0,37965.0,0.06944088]
[1643986041365,0.28001577,37971.0,37965.0,0.06444088]
[1643986041764,0.28001577,37971.0,37965.0,0.11444088]
[1643986041964,0.28001577,37971.0,37965.0,0.06444089]
[1643986043065,0.28001577,37971.0,37965.0,0.19390077]
[1643986043264,0.001,37973.0,37965.0,0.19390077]
[1643986043663,0.001,37973.0,37965.0,0.11444088]
[1643986044264,0.3274126,37971.0,37965.0,0.11444088]
[1643986045320,0.001,37973.0,37968.0,0.04999999]
[1643986045517,0.001,37973.0,37970.0,0.04999999]
[1643986045917,0.001,37973.0,37970.0,0.13169]
[1643986046515,0.001,37973.0,37971.0,0.065843]
[1643986046917,0.001,37973.0,37972.0,0.49999999]
[1643986047117,0.001,37973.0,37972.0,0.04999999]
[1643986047317,0.001,37973.0,37972.0,0.13178112]
[1643986047516,0.001,37973.0,37972.0,0.18178112]
[1643986047822,0.001,37973.0,37972.0,0.09999999]
[1643986048018,0.0957332,37973.0,37972.0,0.05]
[1643986048218,0.0957332,37973.0,37962.0,0.23021699]
[1643986048469,0.0947332,37965.0,37961.0,0.02081671]
[1643986049065,0.001,37973.0,37961.0,0.02081671]
[1643986049365,0.0947332,37970.0,37962.0,0.04999999]
[1643986049565,0.0947332,37970.0,37964.0,0.065859]
[1643986049869,0.0947332,37970.0,37966.0,0.065855]
[1643986050266,0.001,37973.0,37969.0,0.04999999]
[1643986050471,0.001,37973.0,37971.0,0.04999999]
[1643986050671,0.001,37973.0,37967.0,0.131688]
[1643986050672,0.0947332,37972.0,37967.0,0.131688]
[1643986050873,0.001,37973.0,37961.0,0.02081671]
[1643986050874,0.346838,37970.0,37961.0,0.02081671]